bitfinex-derivatives/quotes_SOLF0:USTF0_20251025
["timestamp","ask_amount","ask_price","bid_price","bid_amount"]
[1761407728060,4.14838852,191.94,191.84,2.66]
[1761407728257,2.66,191.96,191.84,2.66]
[1761407728460,4.15050432,191.95,191.84,2.66]
[1761407728662,4.6882,191.95,191.88,2.66]
[1761407729160,4.6882,191.95,191.89,49.84]
[1761407729359,4.6882,191.95,191.9,2.66]
[1761407731268,4.6877,191.97,191.9,2.66]
[1761407732565,4.8360208,192.03,191.91,2.66]
[1761407732765,6.81982596,192.02,191.91,2.66]
[1761407733061,6.81982596,192.01,191.91,2.66]
[1761407733265,2.66,191.99,191.92,2.66]
[1761407733466,2.66,191.97,191.88,2.66]
[1761407733769,4.6886,191.94,191.88,2.66]
[1761407736671,7.3488,191.93,191.88,2.66]
[1761407740573,7.3582,191.95,191.88,2.66]
[1761407743372,2.67,191.94,191.88,2.66]
[1761407745176,6.83725854,191.98,191.88,2.66]
[1761407745475,6.83725854,191.97,191.88,2.66]
[1761407745776,2.67,191.97,191.88,2.66]
[1761407761200,2.67,192.02,191.89,2.66]
[1761407761498,2.67,192.0,191.91,2.66]
[1761407761697,2.67,191.98,191.91,2.66]
[1761407761896,2.67,191.97,191.91,2.66]
[1761407763289,4.8360208,192.02,191.92,15.64]
[1761407763501,2.67,192.04,191.93,2.66]
[1761407763693,4.13162826,192.03,191.93,2.66]
[1761407763892,2.67,192.04,191.94,2.66]
[1761407764087,4.13161777,192.03,191.94,2.66]
[1761407764295,2.67,192.04,191.94,2.66]
[1761407764502,2.67,192.02,191.94,2.66]
[1761407764704,2.67,192.0,191.94,2.66]
[1761407765402,2.67,192.0,191.93,63.08]
[1761407766000,2.67,191.98,191.93,63.08]
[1761407766204,2.67,191.98,191.93,65.74]
[1761407767904,2.62,191.97,191.93,65.74]
[1761407768108,2.62,191.97,191.93,63.08]
[1761407768511,2.62,191.97,191.9,2.66]
[1761407768709,2.62,191.97,191.91,65.74]
[1761407769117,2.62,191.95,191.92,2.66]
[1761407770811,4.6879,191.96,191.92,2.66]
[1761407771908,2.62,191.99,191.92,2.66]
[1761407775903,2.62,191.99,191.91,63.08]
[1761407776109,2.62,191.99,191.93,2.66]
[1761407781413,2.62,191.99,191.92,63.06]
[1761407782104,2.62,191.99,191.92,65.72]
[1761407783220,4.06674591,191.98,191.92,65.72]
[1761407783418,2.62,192.01,191.92,65.72]
[1761407784219,2.62,192.0,191.92,2.66]
[1761407784712,2.62,192.0,191.93,63.08]
[1761407785710,2.62,192.0,191.93,65.74]
[1761407790014,2.62,192.0,191.93,63.08]
[1761407790520,2.62,192.0,191.93,65.74]
[1761407790723,2.62,191.99,191.93,65.74]
[1761407793221,2.62,191.99,191.93,63.08]
[1761407793618,2.62,191.99,191.9,2.66]
[1761407793811,2.62,191.97,191.88,2.66]
[1761407794014,2.62,191.97,191.89,63.04]
[1761407794215,2.62,191.97,191.89,65.7]
[1761407795828,2.62,191.97,191.89,63.04]
[1761407796026,2.62,191.97,191.9,2.66]
[1761407801927,2.67,191.96,191.9,2.66]
[1761407802731,2.67,192.03,191.9,2.66]
[1761407802927,2.67,192.01,191.9,2.66]
[1761407803231,2.67,191.99,191.9,2.66]
[1761407805035,2.67,191.97,191.9,2.66]
[1761407805926,2.67,191.97,191.91,65.7]
[1761407806633,2.67,191.97,191.92,2.66]
[1761407808828,2.67,192.02,191.92,2.66]
[1761407809036,2.67,192.0,191.92,2.66]
[1761407811832,3.03629909,192.03,191.92,2.66]
[1761407811833,2.67,191.98,191.92,2.66]
[1761407812137,2.67,191.98,191.93,65.68]
[1761407815337,2.67,191.96,191.93,63.02]
[1761407818939,2.67,191.96,191.93,2.66]
[1761407820035,2.67,191.96,191.94,2.66]
[1761407820845,2.67,191.96,191.93,2.66]
[1761407823644,2.82,191.99,191.93,2.66]
[1761407823845,3.81716231,191.98,191.93,2.66]
[1761407824052,2.82,191.99,191.93,2.66]
[1761407836645,4.37429584,192.03,191.93,2.66]
[1761407836850,6.60928767,192.02,191.93,2.66]
[1761407837051,3.81928767,192.01,191.93,2.66]
[1761407837251,2.79,192.02,191.93,2.66]
[1761407837446,3.81913573,192.01,191.93,2.66]
[1761407837642,2.79,192.02,191.93,2.66]
[1761407837847,3.81861612,192.01,191.93,2.66]
[1761407838048,2.79,192.02,191.93,2.66]
[1761407838246,3.81861612,192.01,191.93,2.66]
[1761407838448,3.81861612,192.0,191.93,2.66]
[1761407838648,2.79,192.02,191.93,2.66]
[1761407838848,3.89356701,192.01,191.93,2.66]
[1761407839054,3.89356701,192.0,191.93,2.66]
[1761407839355,2.79,192.02,191.93,2.66]
[1761407839554,3.89316218,192.01,191.93,2.66]
[1761407839756,2.79,192.02,191.93,2.66]
[1761407839956,3.89316268,192.01,191.93,2.66]
[1761407840153,2.79,192.02,191.93,2.66]
[1761407840352,3.89316268,192.01,191.93,2.66]
[1761407840554,2.79,192.02,191.93,2.66]
[1761407840757,3.89282012,192.01,191.93,2.66]
[1761407840956,2.79,192.02,191.93,2.66]
[1761407841258,3.89282012,192.01,191.93,2.66]
[1761407841459,2.79,192.02,191.93,2.66]
[1761407841752,6.68252963,192.01,191.93,2.66]
[1761407841960,2.79,192.01,191.93,2.66]
[1761407847977,4.6874,191.99,191.93,2.66]
[1761407858683,2.67,191.98,191.91,9.72799103]
[1761407858880,2.67,191.98,191.87,2.66]
[1761407870278,4.40185857,192.02,191.87,2.66]
[1761407870484,2.67,192.01,191.91,2.66]
[1761407870684,2.67,192.01,191.93,2.66]
[1761407874191,2.67,191.99,191.91,63.06]
[1761407874692,2.67,191.99,191.91,65.72]
[1761407876483,2.67,191.99,191.88,69.82710353]
[1761407876684,2.67,191.97,191.85,2.66]
[1761407876994,2.67,191.95,191.83,63.06]
[1761407877691,2.67,191.93,191.84,2.66]
[1761407886194,3.88429056,191.99,191.84,15.64]
[1761407886401,15.84131836,192.11,191.88,2.66]
[1761407886402,2.78,191.97,191.88,2.66]
[1761407895321,2.84,192.02,191.91,2.66]
[1761407895615,2.84,192.01,191.93,2.66]
[1761407896610,2.84,192.01,191.94,63.02]
[1761407896811,2.84,192.01,191.94,65.68]
[1761407901903,2.84,192.01,191.95,2.66]
[1761407919918,2.84,192.01,191.97,2.66]
[1761407920923,2.84,192.01,191.98,62.92]
[1761407922427,2.84,192.01,191.92,2.66]
[1761407922728,2.84,192.01,191.93,62.9]
[1761407923628,2.86,191.99,191.93,62.9]
[1761407925131,2.86,191.99,191.94,62.9]
[1761407925628,2.86,191.97,191.94,62.9]
[1761407925822,2.86,191.97,191.92,2.66]
[1761407926023,2.86,191.97,191.93,62.9]
[1761407926822,2.86,191.97,191.92,2.66]
[1761407927018,2.86,191.97,191.93,62.9]
[1761407928933,2.86,191.97,191.92,65.56]
[1761407930123,2.86,191.97,191.92,62.9]
[1761407930324,2.86,191.97,191.93,2.66]
[1761407934522,2.86,191.97,191.92,62.9]
[1761407934723,2.86,191.95,191.85,2.66]
[1761407955744,2.86,191.95,191.87,2.63]
[1761407956947,2.86,191.95,191.86,62.92]
[1761407957242,4.01697226,191.94,191.86,62.92]
[1761407957545,2.8,191.93,191.86,62.92]
[1761407961547,2.8,191.93,191.81,71.03581177]
[1761407961748,2.8,191.91,191.81,2.63]
[1761407962045,2.8,191.89,191.81,2.63]
[1761407970452,2.8,191.93,191.84,2.63]
[1761407974458,2.8,191.96,191.84,2.63]
[1761407976666,2.8,191.96,191.84,15.64]
[1761407976869,2.8,191.96,191.85,15.64]
[1761407977161,2.8,191.96,191.86,2.63]
[1761407977368,2.8,191.96,191.88,2.63]
[1761407982769,2.67,191.94,191.84,2.66]
[1761407983070,2.67,191.92,191.84,2.66]
[1761407990771,2.67,191.9,191.84,2.66]
[1761407990975,2.67,191.9,191.83,63.36]
[1761407996282,2.67,191.9,191.83,66.02]
[1761408001592,2.67,191.9,191.83,2.66]
[1761408002084,2.67,191.9,191.78,4.6923]
[1761408002284,2.67,191.9,191.79,2.66]
[1761408003773,2.67,191.9,191.8,63.38]
[1761408003979,2.67,191.9,191.81,2.66]
[1761408005688,4.6899,191.88,191.81,2.66]
[1761408005886,7.5499,191.88,191.81,2.66]
[1761408006884,2.86,191.88,191.81,2.66]
[1761408007196,2.86,191.9,191.81,2.66]
[1761408009086,7.4598,191.89,191.82,2.66]
[1761408011393,4.6898,191.89,191.82,2.66]
[1761408012095,7.4598,191.89,191.82,2.66]
[1761408015300,2.77,191.88,191.82,2.66]
[1761408015595,4.6898,191.89,191.82,2.66]
[1761408016600,7.4598,191.89,191.82,2.66]
[1761408020003,2.77,191.88,191.81,4.6914]
[1761408020301,2.77,191.88,191.82,63.32]
[1761408020698,2.77,191.88,191.82,65.98]
[1761408020998,2.77,191.88,191.82,63.32]
[1761408021205,2.77,191.88,191.83,2.66]
[1761408026016,7.4591,191.91,191.83,2.66]
[1761408026306,2.77,191.9,191.83,2.66]
[1761408026806,7.4595,191.9,191.83,2.66]
[1761408027208,2.77,191.89,191.83,2.66]
[1761408030196,2.77,191.91,191.83,2.66]
[1761408030403,2.77,191.91,191.84,2.66]
[1761408033016,7.4593,191.91,191.84,2.66]
[1761408042221,7.4593,191.91,191.86,2.66]
[1761408042414,2.65,191.9,191.86,2.66]
[1761408043422,4.86272707,191.97,191.86,2.66]
[1761408043423,2.65,191.93,191.86,2.66]
[1761408065649,4.0751507,191.92,191.87,63.08]
[1761408065953,2.62,191.9,191.87,63.08]
[1761408066546,2.62,191.9,191.84,2.66]
[1761408066752,2.62,191.9,191.85,63.08]
[1761408066953,2.62,191.9,191.85,65.74]
[1761408067548,2.62,191.9,191.85,2.66]
[1761408067753,2.62,191.9,191.84,63.08]
[1761408068752,2.62,191.9,191.82,2.66]
[1761408069053,2.62,191.9,191.83,63.08]
[1761408069352,2.62,191.9,191.84,2.67]
[1761408073051,2.62,191.9,191.85,2.67]
[1761408075456,2.63,191.93,191.87,2.67]
[1761408075660,2.63,191.93,191.89,2.67]
[1761408078457,2.63,191.93,191.88,65.75]
[1761408078647,2.63,191.93,191.88,63.08]
[1761408078852,2.63,191.93,191.89,63.08]
[1761408082558,2.63,191.91,191.89,63.08]
[1761408083665,2.63,191.91,191.84,3.57694674]
[1761408083866,2.63,191.91,191.88,63.08]
[1761408086675,3.67,191.91,191.88,63.08]
[1761408086971,2.63,191.89,191.88,63.08]
[1761408087169,6.59635208,191.89,191.88,63.08]
[1761408087371,2.63,191.89,191.88,63.08]
[1761408087568,2.63,191.89,191.84,0.90694674]
[1761408087965,2.63,191.89,191.83,63.08]
[1761408089662,6.48140099,191.96,191.83,63.08]
[1761408089663,2.63,191.87,191.83,63.08]
[1761408089968,2.63,191.87,191.78,63.08]
[1761408090569,3.95925175,191.86,191.78,63.98731326]
[1761408090770,2.63,191.85,191.78,63.98731326]
[1761408091865,2.63,191.85,191.79,2.67]
[1761408095975,2.63,191.85,191.79,65.77]
[1761408097469,2.63,191.85,191.8,2.67]
[1761408118586,3.96349839,191.93,191.8,2.67]
[1761408118784,2.7,191.91,191.8,2.67]
[1761408118994,2.7,191.9,191.8,2.67]
[1761408119196,3.96349839,191.9,191.8,2.67]
[1761408119385,4.85491311,191.94,191.8,2.67]
[1761408119386,2.75,191.89,191.8,2.67]
[1761408122497,2.75,191.88,191.8,2.67]
[1761408124098,2.75,191.86,191.8,2.67]
[1761408127302,2.75,191.86,191.78,0.90731326]
[1761408127503,2.75,191.86,191.79,17.96]
[1761408130105,3.97975739,191.85,191.79,17.96]
[1761408130305,2.85,191.84,191.79,17.96]
[1761408130604,2.85,191.84,191.8,2.67]
[1761408130812,2.85,191.84,191.78,0.90731326]
[1761408131714,2.85,191.84,191.78,3.57731326]
[1761408132617,2.85,191.84,191.79,2.67]
[1761408141229,2.85,191.84,191.78,0.90731326]
[1761408141617,2.85,191.82,191.78,0.90731326]
[1761408143327,2.85,191.82,191.78,3.57731326]
[1761408143731,2.85,191.82,191.78,0.90731326]
[1761408145323,2.85,191.82,191.7,2.67]
[1761408145525,2.85,191.8,191.7,2.67]
[1761408145826,2.85,191.78,191.72,0.90760905]
[1761408147226,2.85,191.78,191.68,63.04]
[1761408147428,2.85,191.78,191.68,65.71]
[1761408147630,2.85,191.78,191.7,2.67]
[1761408149533,2.85,191.77,191.7,2.67]
[1761408155939,3.91448046,191.82,191.7,2.67]
[1761408156142,2.85,191.81,191.7,2.67]
[1761408157836,2.85,191.81,191.71,2.67]
[1761408159146,2.85,191.81,191.72,2.62]
[1761408159740,2.85,191.81,191.73,2.62]
[1761408160348,2.87,191.86,191.73,2.62]
[1761408160644,2.87,191.85,191.74,2.62]
[1761408160845,2.87,191.85,191.76,2.62]
[1761408170144,3.91728197,191.85,191.76,2.62]
[1761408170449,2.87,191.84,191.76,2.62]
[1761408176148,2.87,191.84,191.75,65.68]
[1761408176652,2.87,191.84,191.76,2.62]
[1761408193261,2.75,191.89,191.76,2.62]
[1761408193460,2.75,191.88,191.76,2.62]
[1761408193664,2.75,191.88,191.75,88.43060045]
[1761408193665,2.75,191.88,191.78,2.66]
[1761408195473,2.75,191.88,191.79,2.66]
[1761408197663,2.75,191.88,191.8,2.66]
[1761408197966,2.75,191.92,191.81,2.66]
[1761408198165,2.75,191.92,191.83,2.66]
[1761408207770,2.75,191.95,191.84,15.64]
[1761408207976,2.75,191.95,191.85,2.66]
[1761408209171,2.75,191.95,191.86,2.66]
[1761408213179,2.75,191.95,191.87,2.66]
[1761408214988,2.75,191.95,191.88,2.66]
[1761408223189,2.9,191.98,191.88,2.66]
[1761408227482,2.9,191.98,191.83,15.64]
[1761408227688,2.9,191.98,191.85,2.66]
[1761408230492,2.9,191.97,191.85,2.66]
[1761408238307,3.88771413,191.97,191.85,2.66]
[1761408238609,4.84234113,192.02,191.85,2.66]
[1761408238610,2.9,191.96,191.85,2.66]
[1761408239805,2.9,191.96,191.86,12.39060045]
[1761408240108,2.9,191.96,191.87,2.66]
[1761408244103,2.87,191.94,191.87,2.66]
[1761408251819,2.87,191.94,191.85,9.73060045]
[1761408252022,2.87,191.94,191.86,2.66]
[1761408257039,2.87,191.94,191.87,2.66]
[1761408260936,2.87,191.94,191.86,9.73060045]
[1761408261337,2.75,191.92,191.84,2.66]
[1761408267938,2.75,191.96,191.84,2.66]
[1761408268140,2.75,191.94,191.84,2.66]
[1761408297676,2.75,191.94,191.85,2.63]
[1761408301878,2.75,191.94,191.86,62.98]
[1761408302470,2.75,191.94,191.86,65.64]
[1761408302869,2.75,191.94,191.87,2.66]
[1761408304581,2.75,191.94,191.88,62.98]
[1761408306587,2.75,191.94,191.89,2.66]
[1761408308876,2.75,191.94,191.88,58.97608704]
[1761408309072,3.90861857,191.93,191.78,2.77]
[1761408309383,2.88,191.91,191.79,63.42]
[1761408309583,2.88,191.89,191.79,66.19]
[1761408309876,2.88,191.87,191.8,2.77]
[1761408311074,2.88,191.86,191.8,2.77]
[1761408314980,7.5696,191.89,191.8,2.77]
[1761408319583,2.88,191.89,191.81,2.77]
[1761408319788,2.88,191.92,191.84,2.77]
[1761408319978,2.88,191.92,191.86,2.77]
[1761408320983,2.88,191.92,191.87,63.38]
[1761408321180,2.88,191.92,191.88,63.38]
[1761408323878,2.88,191.92,191.8,2.77]
[1761408324085,2.88,191.92,191.81,63.34]
[1761408324486,2.88,191.9,191.81,63.34]
[1761408327593,2.88,191.88,191.81,66.11]
[1761408328790,2.88,191.88,191.77,2.77]
[1761408328993,2.88,191.88,191.79,2.77]
[1761408337089,2.88,191.91,191.8,2.77]
[1761408338192,2.88,191.91,191.81,2.83]
[1761408344494,2.88,191.91,191.82,2.83]
[1761408351912,2.88,191.91,191.84,2.83]
[1761408352620,2.88,191.91,191.85,63.26]
[1761408353321,2.88,191.91,191.8,2.83]
[1761408353521,2.88,191.91,191.81,63.28]
[1761408353717,2.88,191.91,191.82,63.28]
[1761408353923,2.79,191.89,191.82,63.28]
[1761408354623,2.79,191.87,191.82,63.28]
[1761408358228,2.79,191.9,191.75,0.90693492]
[1761408358526,2.79,191.86,191.75,0.90693492]
[1761408358827,2.79,191.84,191.75,0.90693492]
[1761408359031,2.79,191.82,191.75,0.90693492]
[1761408360115,2.87,191.8,191.68,2.83]
[1761408360315,2.87,191.78,191.68,0.90769191]
[1761408360514,6.94393541,191.77,191.68,0.90769191]
[1761408360729,2.87,191.75,191.68,0.90769191]
[1761408361420,2.87,191.75,191.68,3.65769191]
[1761408362024,2.87,191.75,191.69,2.75]
[1761408362528,2.87,191.78,191.69,2.75]
[1761408364116,2.87,191.81,191.69,2.75]
[1761408366828,2.87,191.84,191.7,2.75]
[1761408368120,2.87,191.84,191.69,72.11445686]
[1761408368121,2.87,191.84,191.72,2.85]
[1761408368426,2.87,191.84,191.69,72.11445686]
[1761408368427,2.87,191.84,191.74,2.85]
[1761408368728,2.87,191.84,191.75,57.95]
[1761408368931,2.87,191.84,191.75,55.1]
[1761408369131,2.87,191.84,191.76,2.85]
[1761408369931,2.87,191.84,191.74,64.2]
[1761408370128,2.87,191.84,191.74,67.05]
[1761408370924,2.87,191.84,191.75,2.85]
[1761408375028,2.87,191.84,191.71,2.85]
[1761408375226,2.87,191.84,191.68,0.90769191]
[1761408375227,2.87,191.84,191.68,3.75769191]
[1761408375631,2.87,191.84,191.69,2.85]
[1761408378740,2.72,191.83,191.69,2.85]
[1761408379127,2.72,191.83,191.71,2.85]
[1761408388837,2.72,191.83,191.73,2.85]
[1761408390534,2.72,191.83,191.74,2.85]
[1761408401047,2.69,191.89,191.74,2.85]
[1761408401444,2.69,191.87,191.74,2.85]
[1761408402440,2.69,191.87,191.75,2.78]
[1761408403941,2.69,191.87,191.76,4.6926]
[1761408404141,2.69,191.87,191.77,2.78]
[1761408404542,2.69,191.87,191.74,2.78]
[1761408404745,2.69,191.85,191.74,2.78]
[1761408405047,2.69,191.84,191.74,2.78]
[1761408405946,2.69,191.84,191.75,65.5]
[1761408407848,2.69,191.84,191.71,2.78]
[1761408408049,2.69,191.82,191.72,65.46]
[1761408408441,2.69,191.82,191.69,211.24]
[1761408408641,2.69,191.82,191.71,65.46]
[1761408411153,2.69,191.82,191.72,2.78]
[1761408412357,2.69,191.8,191.72,2.78]
[1761408413956,2.69,191.8,191.71,65.46]
[1761408415559,2.69,191.8,191.68,0.90769191]
[1761408415856,2.69,191.78,191.68,0.90769191]
[1761408416956,2.69,191.76,191.59,211.24]
[1761408417153,2.69,191.74,191.6,2.78]
[1761408417352,2.69,191.73,191.63,0.90799979]
[1761408418864,2.69,191.72,191.63,0.90799979]
[1761408423860,2.69,191.72,191.63,3.74799979]
[1761408425164,2.69,191.72,191.64,2.84]
[1761408430670,4.01743329,191.84,191.64,2.84]
[1761408430968,2.67,191.83,191.64,2.84]
[1761408433073,2.67,191.83,191.65,65.36]
[1761408433272,2.67,191.83,191.66,2.87]
[1761408436190,2.67,191.83,191.67,2.87]
[1761408436588,2.67,191.83,191.68,4.6947]
[1761408436781,2.67,191.83,191.69,2.87]
[1761408437589,2.67,191.83,191.7,2.87]
[1761408437886,2.67,191.94,191.74,4.6931]
[1761408438092,2.67,191.94,191.76,2.87]
[1761408438593,2.67,191.93,191.76,2.87]
[1761408438794,2.67,191.92,191.76,2.87]
[1761408438994,2.67,191.91,191.76,2.87]
[1761408439791,2.67,191.91,191.77,2.87]
[1761408443298,2.67,191.9,191.77,2.87]
[1761408443499,2.67,191.89,191.77,2.87]
[1761408450402,2.67,191.87,191.77,2.87]
[1761408452005,4.6913,191.83,191.77,2.87]
[1761408452503,4.6905,191.86,191.77,2.87]
[1761408452701,2.67,191.91,191.77,2.87]
[1761408452899,2.67,191.91,191.69,15.64]
[1761408453206,2.67,191.89,191.7,2.87]
[1761408453400,2.67,191.87,191.7,2.87]
[1761408453804,2.67,191.86,191.7,2.87]
[1761408454399,4.6928,191.76,191.7,2.87]
[1761408460807,2.9,191.75,191.63,0.90799979]
[1761408461107,2.9,191.75,191.64,2.76]
[1761408466712,2.9,191.75,191.63,0.90799979]
[1761408470518,2.9,191.74,191.63,0.90799979]
[1761408471717,2.9,191.73,191.63,0.90799979]
[1761408480216,2.9,191.73,191.57,2.76]
[1761408480421,2.76,191.72,191.57,2.76]
[1761408480613,2.76,191.72,191.6,0.90815381]
[1761408480817,2.76,191.72,191.6,3.66815381]
[1761408481229,2.76,191.72,191.61,2.76]
[1761408503343,2.74,191.76,191.61,2.76]
[1761408505142,2.74,191.76,191.61,4.6964]
[1761408505354,2.74,191.76,191.62,2.72]
[1761408505736,6.75984799,191.76,191.62,2.72]
[1761408505936,2.74,191.76,191.62,2.72]
[1761408507039,6.76318764,191.76,191.62,2.72]
[1761408507240,2.74,191.75,191.62,2.72]
[1761408509655,2.74,191.75,191.62,4.6961]
[1761408509853,2.74,191.75,191.63,2.72]
[1761408515852,2.74,191.75,191.65,2.72]
[1761408519654,2.82,191.81,191.65,2.72]
[1761408519852,2.82,191.79,191.65,2.72]
[1761408520048,2.82,191.78,191.65,2.72]
[1761408520751,2.82,191.78,191.66,2.82]
[1761408522161,2.82,191.78,191.67,2.82]
[1761408528156,2.82,191.78,191.68,62.12]
[1761408528466,2.82,191.78,191.69,2.82]
[1761408536772,2.82,191.78,191.63,2.82]
[1761408537075,2.82,191.78,191.65,2.82]
[1761408538378,4.86300665,191.77,191.65,2.82]
[1761408538578,2.82,191.76,191.65,2.82]
[1761408548778,2.82,191.76,191.66,68.1]
[1761408549374,2.66,191.74,191.66,68.1]
[1761408549880,2.66,191.74,191.66,65.22]
[1761408550682,2.66,191.74,191.66,68.1]
[1761408552380,2.66,191.74,191.67,2.88]
[1761408563785,2.66,191.74,191.68,64.94]
[1761408564287,2.66,191.74,191.66,64.96]
[1761408565188,2.66,191.74,191.67,2.88]
[1761408577698,2.66,191.78,191.67,2.88]
[1761408577898,4.00806969,191.77,191.67,2.88]
[1761408578103,6.75806969,191.76,191.67,2.88]
[1761408578397,2.75,191.76,191.67,2.88]
[1761408584399,2.75,191.76,191.69,2.74]
[1761408587402,2.75,191.74,191.69,2.74]
[1761408589501,2.75,191.74,191.7,64.52]
[1761408590502,2.75,191.74,191.62,2.74]
[1761408590696,4.00985262,191.73,191.62,2.74]
[1761408591006,2.75,191.72,191.63,64.5]
[1761408594010,2.75,191.72,191.63,67.24]
[1761408596207,2.75,191.72,191.64,2.74]
[1761408601016,2.73,191.7,191.61,2.63]
[1761408601213,2.73,191.7,191.6,0.90815381]
[1761408601515,2.73,191.68,191.6,0.90815381]
[1761408610714,2.73,191.68,191.55,2.62]
[1761408610915,2.73,191.68,191.56,0.90833159]
[1761408611114,2.73,191.68,191.56,3.52833159]
[1761408611419,2.73,191.68,191.57,2.62]
[1761408611613,3.97937934,191.72,191.57,2.62]
[1761408611819,2.64,191.67,191.57,2.62]
[1761408634436,2.64,191.72,191.57,2.62]
[1761408637342,2.64,191.7,191.57,2.62]
[1761408641150,2.69,191.68,191.57,2.62]
[1761408649550,2.69,191.66,191.57,2.62]
[1761408670766,2.61,191.69,191.57,2.62]
[1761408681869,2.61,191.69,191.58,2.86]
[1761408683965,2.61,191.69,191.59,2.86]
[1761408684171,4.99386145,191.77,191.59,2.86]
[1761408684172,2.61,191.73,191.59,2.86]
[1761408686577,2.61,191.73,191.6,2.86]
[1761408690678,2.61,191.71,191.6,2.86]
[1761408716710,2.61,191.71,191.62,2.66]
[1761408761642,2.61,191.71,191.64,2.86]
[1761408762741,2.61,191.71,191.65,66.94]
[1761408763645,2.61,191.71,191.65,2.86]
[1761408763943,2.61,191.71,191.66,66.94]
[1761408764346,2.61,191.71,191.66,2.86]
[1761408764540,2.61,191.71,191.66,66.94]
[1761408765343,2.61,191.71,191.59,2.86]
[1761408765540,2.61,191.71,191.61,2.86]
[1761408766945,2.61,191.71,191.63,2.86]
[1761408767446,2.61,191.71,191.64,66.92]
[1761408768241,2.61,191.71,191.59,2.86]
[1761408768447,2.61,191.71,191.61,2.86]
[1761408847212,2.85,191.69,191.62,63.82]
[1761408847601,2.85,191.69,191.62,66.64]
[1761408849915,2.85,191.69,191.63,2.69]
[1761408850316,2.85,191.69,191.59,2.69]
[1761408850508,2.85,191.69,191.64,63.82]
[1761408850707,2.85,191.69,191.65,63.82]
[1761408856417,2.85,191.69,191.65,66.51]
[1761408857214,2.85,191.69,191.65,63.82]
[1761408857811,2.85,191.69,191.65,66.51]
[1761408860414,2.85,191.69,191.65,63.82]